Cogmind - Beta 11.1 @@@ ROGUE MODE // 2022.05.22 @ 18:57:40 Player: DDRAGON Result: Destroyed by G-47 Trooper with Particle Gun Performance ------------- Evolutions (0) 0 Regions Visited (2) 400 Robots Destroyed (20) 100 Value Destroyed (569) 569 Prototype IDs (0) 0 Alien Tech Used (0) 0 Bonus (0) 0 TOTAL SCORE: 1069 Bonus ------- None Cogmind --------- Core Integrity 0/250 Matter 300/300 Energy 250/250 System Corruption 0% Temperature Cool (27) Movement Walking (190) Ox1 Location -10/Mines Parts ------- > --- POWER (1) -------- Ion Engine > --- PROPULSION (2) --- Aluminum Leg Aluminum Leg > --- UTILITY (2) ------ Large Storage Unit Field Recycling Unit > --- WEAPON (2) ------- Small Laser Small Laser > --- INVENTORY (15) --- Ion Engine Aluminum Leg Aluminum Leg Wheel Wheel Small Laser Heavy Assault Rifle Peak State ------------ > --- POWER ------------ Light Ion Engine > --- PROPULSION ------- Aluminum Leg Aluminum Leg > --- UTILITY ---------- Small Storage Unit Field Recycling Unit > --- WEAPON ----------- Medium Laser Heavy Assault Rifle > --- INVENTORY -------- Light Ion Engine Wheel Wheel Small Laser Small Laser [Rating: 9] Favorites ----------- Power Light Ion Engine Engine Light Ion Engine Propulsion Aluminum Leg Leg Aluminum Leg Utility Field Recycling Unit Device Field Recycling Unit Storage Large Storage Unit Weapon Medium Laser Energy Gun Medium Laser Ballistic Gun Heavy Assault Rifle Build | -11 -10 -10 ------- Run | Scr Mat Min Slots Evolved . | . . . Power . | . . . Propulsion . | . . . Utility . | . . . Weapon . | . . . Parts Attached 23 | 6 4 13 Power 4 | 1 . 3 Engine 4 | 1 . 3 Core . | . . . Reactor . | . . . Propulsion 8 | 2 . 6 Treads . | . . . Leg 8 | 2 . 6 Wheel . | . . . Hover . | . . . Flight . | . . . Utility 3 | 1 2 . Device 1 | . 1 . Storage 2 | 1 1 . Processor . | . . . Hackware . | . . . Protection . | . . . Artifact . | . . . Weapon 8 | 2 2 4 Energy Gun 6 | 2 . 4 Energy Cannon . | . . . Ballistic Gun 2 | . 2 . Ballistic Cannon . | . . . Launcher . | . . . Special Weapon . | . . . Impact Weapon . | . . . Slashing Weapon . | . . . Piercing Weapon . | . . . Special Melee Weapon . | . . . Unidentified Prototypes . | . . . Parts Lost 3 | . . 3 Power 1 | . . 1 Propulsion 1 | . . 1 Utility . | . . . Weapon 1 | . . 1 Highest Loss Streak 2 | . . 2 To Critical Strikes . | . . . Average Slot Usage (%) 98 | . 97 99 Engine 13 | . 14 13 Leg 27 | . 28 27 Device 13 | . 13 14 Storage 14 | . 14 14 Energy Gun 17 | . 15 18 Ballistic Gun 9 | . 11 9 Naked Turns . | . . . Heaviest Build 36 | 11 36 36 Greatest Support 20 | 20 20 20 Greatest Overweight (x) 3 | . 1 3 Average Overweight (x) . | . . 1 Largest Inventory Capacity 15 | 8 15 15 Average Capacity 14 | 6 12 15 Most Carried 8 | 5 6 8 Average Carried 4 | 2 4 5 Final Capacity 15 | 8 15 15 Final Carried 7 | 4 5 7 Class Distribution -------------------- 81% | Mutant 18% | Scavenger-Mutant Dominant Class ---------------- Mutant | -10/Materials Mutant | -10/Mines Resources | -11 -10 -10 ----------- Run | Scr Mat Min Matter Collected 500 | 198 91 211 Remotely . | . . . Salvage Created 715 | . 87 628 Parts 45 | . 9 36 Haulers Intercepted . | . . . Recyclers Shooed . | . . . Parts Field Recycled 5 | . 5 . Retrieved Matter 38 | . 38 . Parts Self-Destructed . | . . . Prevented . | . . . Kills | -11 -10 -10 ------- Run | Scr Mat Min Combat Hostiles Destroyed 17 | . 2 15 Guns 17 | . 2 15 Classes Destroyed 4 | . 2 2 Tunneler 1 | . . 1 Watcher 2 | . 2 . Swarmer 2 | . 2 . Grunt 15 | . . 15 Best Kill Streak 4 | . 3 4 Combat Bots Only 3 | . 2 3 Max Kills in Single Turn 1 | . 1 1 Gunslinging . | . . . Exploded . | . . . Melee . | . . . Uniques/NPCs Destroyed . | . . . Combat | -11 -10 -10 -------- Run | Scr Mat Min Damage Taken 966 | . 81 885 Core 255 | . 24 231 Absorbed by Shields . | . . . Core Remaining (%) 100 | 100 . . Volleys Fired 72 | . 9 63 Largest 2 | . 2 2 Hottest 80 | . 73 80 Shots Fired 141 | . 18 123 Gun 141 | . 18 123 Cannon . | . . . Launcher . | . . . Special . | . . . Kinetic 43 | . 9 34 Thermal 98 | . 9 89 Explosive . | . . . Electromagnetic . | . . . Robot Hit Streak 12 | . 4 12 Robot Miss Streak 4 | . 2 4 Penetration Max . | . . . Secondary Targets 1 | . . 1 Max Gunslinging Chain 1 | . . 1 Shots Hit Robots 75 | . 9 66 Core Hits 35 | . 4 31 Critical Kills 1 | . . 1 Critical Parts Destroyed . | . . . Critical Strikes 4 | . . 4 Burn 3 | . . 3 Destroy 1 | . . 1 Melee Attacks . | . . . Impact . | . . . Slashing . | . . . Piercing . | . . . Sneak Attacks . | . . . Combat Hostiles . | . . . Follow-up Attacks . | . . . Damage Inflicted 990 | . 116 874 Guns 936 | . 116 820 Cannons . | . . . Explosions . | . . . Melee . | . . . Ramming 54 | . . 54 Kinetic 310 | . 55 255 Thermal 626 | . 61 565 Explosive . | . . . Electromagnetic . | . . . Impact . | . . . Slashing . | . . . Piercing . | . . . Highest Corruption . | . . . Average Corruption . | . . . Corruption Purged . | . . . Corruption Blocked . | . . . Overload Shots . | . . . Overflow Damage . | . . . Projectiles . | . . . Explosions . | . . . Melee . | . . . Knockbacks . | . . . Impact . | . . . Kinetic . | . . . Secondary . | . . . Self-Inflicted Damage . | . . . Shots . | . . . Rammed . | . . . Targets Rammed 14 | . . 14 Kicked 14 | . . 14 Crushed . | . . . Highest Temperature 246 | . 180 246 Average Temperature 74 | . 72 74 Received Heat Transfer 483 | . . 483 Siege Activations . | . . . Robots Corrupted . | . . . Combat Hostiles . | . . . Parts Fried . | . . . Impact Corruptions . | . . . Robots Melted . | . . . Combat Hostiles . | . . . Parts Melted 2 | . . 2 Heat Transferred 1836 | . 185 1651 Parts Sabotaged . | . . . Parts Stolen . | . . . Parts Stripped . | . . . Power Chain Reactions . | . . . Missiles Intercepted . | . . . Alert | -11 -10 -10 ------- Run | Scr Mat Min Peak Influence 160 | . 76 160 Initial . | . . . Average 47 | . 60 46 Maximum Alert Level . | . . . Low Security (%) 100 | 100 100 100 Level 1 . | . . . Level 2 . | . . . Level 3 . | . . . Level 4 . | . . . Level 5 . | . . . High Security . | . . . Max Security . | . . . Squads Dispatched . | . . . Investigation . | . . . Extermination . | . . . Reinforcement . | . . . Assault . | . . . Garrison . | . . . Intercept . | . . . Searches Triggered . | . . . Construction Impeded . | . . . Haulers Reinforced . | . . . Active Scanning Responses . | . . . Cargo Convoy Interrupts . | . . . Stealth | -11 -10 -10 --------- Run | Scr Mat Min Distress Signals 3 | . 1 2 Communications Jammed . | . . . Distress Signals . | . . . Times Spotted 26 | . 8 18 Peak Tracking Total 4 | . 4 4 Tactical Retreats 2 | . . 2 Traps | -11 -10 -10 ------- Run | Scr Mat Min Traps Triggered . | . . . Indirectly . | . . . Trap Hack Attempts . | . . . Triggered . | . . . Disarmed . | . . . Reprogrammed . | . . . Reused . | . . . Traps Extracted . | . . . Installed . | . . . Triggered . | . . . Machines | -11 -10 -10 ---------- Run | Scr Mat Min Machines Disabled . | . . . Max in Single Turn . | . . . Machines Sabotaged . | . . . Garrisons Compromised . | . . . Overloaded Fab Kills . | . . . Hacking | -11 -10 -10 --------- Run | Scr Mat Min Machines Accessed 2 | . 2 . Terminals 1 | . 1 . Fabricators . | . . . Repair Stations 1 | . 1 . Recycling Units . | . . . Scanalyzers . | . . . Garrison Access . | . . . Total Hacks 3 | . 3 . Successful 2 | . 2 . Failed 1 | . 1 . Catastrophic . | . . . Database Lockouts . | . . . Manual . | . . . Terminals 1 | . 1 . Fabricators . | . . . Repair Stations 2 | . 2 . Recycling Units . | . . . Scanalyzers . | . . . Garrison Access . | . . . Terminal Hacks 1 | . 1 . Dispatch Records 1 | . 1 . Fabricator Hacks . | . . . Repair Station Hacks 1 | . 1 . Scan Component 1 | . 1 . Recycling Unit Hacks . | . . . Scanalyzer . | . . . Garrison Access Hacks . | . . . Unauthorized Hacks . | . . . Terminals . | . . . Fabricators . | . . . Repair Stations . | . . . Recycling Units . | . . . Scanalyzers . | . . . Garrison Access . | . . . Data Cores Recovered . | . . . Used . | . . . Hacking Detections . | . . . Full Trace Events . | . . . Feedback Events . | . . . Feedback Blocked . | . . . Robot Schematics Acquired . | . . . Robots Built . | . . . Authchips . | . . . Time . | . . . Total Robot Build Rating . | . . . Part Schematics Acquired . | . . . Parts Built . | . . . Authchips . | . . . Time . | . . . Total Part Build Rating . | . . . Parts Repaired . | . . . Time . | . . . Parts Recycled . | . . . Recycled Matter . | . . . Retrieved Matter . | . . . Retrieved Components . | . . . Parts Scanalyzed . | . . . Part Schematics Acquired . | . . . Parts Damaged . | . . . Bothacking | -11 -10 -10 ------------ Run | Scr Mat Min Used RIF Installer . | . . . Robots Hacked . | . . . Non-combat . | . . . Combat . | . . . Robot Hacks Applied . | . . . Relay Couplers Released . | . . . Fabnet Peak Effective % . | . . . Robots Rewired . | . . . Allies Hacked . | . . . Hacks Repelled . | . . . Allies | -11 -10 -10 -------- Run | Scr Mat Min Total Allies . | . . . Largest Group . | . . . Highest-Rated Group . | . . . Highest-Rated Ally . | . . . Total Orders . | . . . Ally Attacks . | . . . Total Damage . | . . . Kills . | . . . Allies Corrupted . | . . . Allies Melted . | . . . Intel | -11 -10 -10 ------- Run | Scr Mat Min Robot Analysis Total . | . . . Derelict Logs Recovered . | . . . Drone Launches . | . . . Drone Recoveries . | . . . Exploration | -11 -10 -10 ------------- Run | Scr Mat Min Turns Passed 1718 | 85 418 1215 Spaces Moved 757 | 89 212 456 Core 53 | 53 . . Treads . | . . . Legs 704 | 36 212 456 Wheels . | . . . Hover . | . . . Flight . | . . . Fastest Speed 50 | 50 120 190 Average Speed 175 | 78 179 191 Slowest Speed 330 | 120 190 330 Overloaded Moves . | . . . Propulsion Burnouts . | . . . Robots Hopped . | . . . Cave-ins Triggered . | . . . Exploration Rate (%) 32 | 4 28 64 Regions Visited 2 Branch Regions 1 Pre-discovered Areas . | . . . Known Exits Taken . | . . . Unknown Exits Taken 2 | 1 1 . Scrap Searched . | . . . Spaces Dug . | . . . Terrain Destroyed . | . . . Melee . | . . . Projectile . | . . . AOE . | . . . Terrain Rammed . | . . . Walls Destroyed . | . . . Machines Disabled . | . . . Actions | -11 -10 -10 --------- Run | Scr Mat Min Total 997 | 104 233 660 Wait 92 | . . 92 Move 755 | 88 211 456 Hop . | . . . Pick Up 23 | 10 4 9 Fast Attach 4 | . 1 3 Attach 11 | 6 3 2 Detach 4 | . 2 2 Swap 8 | . . 8 Drop 14 | . 3 11 Fire 72 | . 9 63 Melee . | . . . Ram . | . . . Kick 14 | . . 14 Crush . | . . . Escape Stasis . | . . . Rewire . | . . . Trap . | . . . Miscellaneous . | . . . Route ------- -11/Scrapyard -10/Materials (discovered 2 exits: [*Min x2]) -10/Mines History --------- Turn | Location | Event 5 | -11/Scrapyard | Discovered new exit (range 16) 86 | -11/Scrapyard | Entered Materials 92 | -10/Materials | Discovered new exit (range 16) 312 | -10/Materials | Build established: Mutant 490 | -10/Materials | Discovered new exit (range 5) 504 | -10/Materials | Entered Mines 714 | -10/Mines | Excavation squad dispatched 714 | -10/Mines | A large section of the Mines collapsed 964 | -10/Mines | Excavation squad dispatched 1214 | -10/Mines | Excavation squad dispatched 1315 | -10/Mines | Core integrity fell below 50% 1464 | -10/Mines | Excavation squad dispatched 1518 | -10/Mines | Core integrity fell below 20% 1714 | -10/Mines | Excavation squad dispatched 1719 | -10/Mines | Destroyed by G-47 Trooper with Particle Gun Last Messages --------------- K-01 Serf collects debris. Acquired 10 matter. Kicked U-05 Engineer out of the way. K-01 Serf collects debris. Kicked T-07 Excavator. Acquired Aluminum Leg. Dropped Aluminum Leg. Kicked T-07 Excavator out of the way. Acquired 4 matter. Kicked K-01 Serf. Kicked T-07 Excavator. Kicked U-05 Engineer. Sml. Laser destroyed. G-34 Mercenary destroyed. Acquired Aluminum Leg. Acquired Sml. Laser. Acquired 21 matter. ALERT: Derelict activity in mines confirmed. Dispatching additional escorted excavation squad. Critical hit (Burn: +37). Map ----- +----------------------------------------------------+ | ??????# #### =%*##########?????????????? | | ??????# [%= ##??????????????????????? | | ??????# = #???????????????????????? | | ??????######## ##???????????????????????? | | ?????????????## [=* ##????????????????????????? | | ?????????????## = %%!#?????????????????????????? | | ????????????## *[*%!##???????#####?????????????? | | ?????????#### % ##???????## ##????????????? | | ?????????# = %#####???## #????????????? | | ?????????# % %%%%%#??## #????????????? | | ?????????# ###%#??# #????????????? | | ?????????#### ##?#%#??# ##????????????? | | ????????????## ##??#=#??## #?###?????????? | | ?????????????#######???#%#???## ## ##????????? | | ???????????????????????#=#????## #????????? | | ???????????????????????#*######## #????????? | | ???????????????????????# #?## ##????????? | | ???????????????????????###### #??## ###?????????? | | ????????????????????????????# #???# ##???????????? | | ????????????????????????????# ##### #????????????? | | ????????????????????????????# #????????????? | | ????????????????????????????####### #?????????""?? | | ????????????????????????########### #### """?? | | ????????????????????????# g %! #???????? | | ????????????????????#####g############## #???????? | | ????????????????????# @#??????????????????????? | | ????????????????????# #####??????????????????????? | | ?????????????????????????????????????????????????? | | ?????????????????????????????????????????????????? | | ?????????????????????????????????????????????????? | | ?????????????????????????????????????????????????? | | ?????????????????????????????????????????????????? | | ?????????????????????????????????????????????????? | | ?????????????????????????????????????????????????? | | ?????????????????????????????????????????????????? | | ?????????????????????????????????????????????????? | | ?????????????????????????????????????????????????? | | | | | | | | | | | | | | | | | | | | | | | | | | | +----------------------------------------------------+ Best States ------------- Heat Dissipation 25 Energy Generation 10 Energy Capacity 250 Matter Stores 300 Matter Capacity 300 Sight Range 16 Terrain Scan Density 10 Evasion (%) 55 Item Schematics ----------------- None Robot Schematics ------------------ None Fabricated ------------ Nothing Alien Tech Used ----------------- None Achievements -------------- None Challenges ------------ None Game ------ Seed AutogunShadingFlamer Manual? 0 Play Time 00:19:55 Cumulative 8.9 hours Start 2022.05.22 @ 18:39:36 End 2022.05.22 @ 18:57:40 Sessions 1 Manual Loads 0 Difficulty Rogue Special Mode None Game No. 16 Rogue 16 Adventurer 0 Explorer 0 Win Type - Total 0 Types 0/0/0/0/0/0/0/0/0 Lore% 12 Gallery% 20 Achievement% 14 Wizard Run 0 Options --------- ASCII 0 Keyboard 1 Movement Numpad Keybinds 0 Fullscreen 1 Font 24/Proggy Map View 76x50 Tactical HUD 0 Map Filters NONE Filters NONE Steam 1 RUN: 0dcae52e-cc8b-43ea-bd5d-8756f42c70cf